[Event "Late-Titled-Tuesday-Blitz-February-13-2024"]
[Site "Chess.com"]
[Date "2024.02.13"]
[Round "2"]
[White "ajeale2"]
[Black "N_I_Chess"]
[Result "1-0"]
[WhiteElo "2515"]
[BlackElo "2283"]
[TimeControl "180+1"]
[EndTime "14:19:51 PST"]
[Termination "ajeale2 won by resignation"]

1. c4 {[%clk 0:03:00.9]} 1... Nf6 {[%clk 0:02:56]} 2. Nf3 {[%clk 0:03:01]} 2...
e6 {[%clk 0:02:49.8]} 3. g3 {[%clk 0:03:01.5]} 3... b6 {[%clk 0:02:49.6]} 4. Bg2
{[%clk 0:03:01.7]} 4... Bb7 {[%clk 0:02:50.3]} 5. O-O {[%clk 0:03:02.3]} 5...
Be7 {[%clk 0:02:50.4]} 6. b3 {[%clk 0:03:02.2]} 6... O-O {[%clk 0:02:51]} 7. Bb2
{[%clk 0:03:02.8]} 7... d6 {[%clk 0:02:51.4]} 8. d4 {[%clk 0:03:02.7]} 8... Nbd7
{[%clk 0:02:51.9]} 9. Nc3 {[%clk 0:03:03]} 9... Re8 {[%clk 0:02:50.9]} 10. Qc2
{[%clk 0:03:01.8]} 10... Bf8 {[%clk 0:02:49.3]} 11. Rad1 {[%clk 0:03:01.3]}
11... a5 {[%clk 0:02:47.4]} 12. e4 {[%clk 0:03:00.3]} 12... e5 {[%clk
0:02:44.3]} 13. dxe5 {[%clk 0:02:56.9]} 13... dxe5 {[%clk 0:02:44.1]} 14. Nd5
{[%clk 0:02:50.1]} 14... Nxd5 {[%clk 0:02:44.1]} 15. exd5 {[%clk 0:02:47.9]}
15... g6 {[%clk 0:02:20.5]} 16. Rfe1 {[%clk 0:02:43.6]} 16... Bg7 {[%clk
0:02:19.9]} 17. h4 {[%clk 0:02:37.9]} 17... a4 {[%clk 0:02:12.6]} 18. b4 {[%clk
0:02:33.1]} 18... a3 {[%clk 0:01:57.8]} 19. Ba1 {[%clk 0:02:30.9]} 19... Qe7
{[%clk 0:01:49.5]} 20. Bh3 {[%clk 0:02:29.6]} 20... Rad8 {[%clk 0:01:32.5]} 21.
Bxd7 {[%clk 0:02:23.5]} 21... Qxd7 {[%clk 0:01:33.4]} 22. Nxe5 {[%clk
0:02:16.4]} 22... Qh3 {[%clk 0:01:29.7]} 23. Qd3 {[%clk 0:01:56.7]} 23... b5
{[%clk 0:01:23]} 24. Qf3 {[%clk 0:01:49.4]} 24... Qf5 {[%clk 0:01:09.7]} 25.
Qxf5 {[%clk 0:01:00.3]} 25... gxf5 {[%clk 0:01:10.6]} 26. cxb5 {[%clk
0:00:59.9]} 26... Rxd5 {[%clk 0:01:04.3]} 27. Nc6 {[%clk 0:00:50.2]} 27... Rxd1
{[%clk 0:00:10.8]} 28. Rxd1 {[%clk 0:00:50.5]} 28... Bxc6 {[%clk 0:00:10.2]} 29.
bxc6 {[%clk 0:00:51.2]} 29... Bxa1 {[%clk 0:00:10.3]} 30. Rxa1 {[%clk
0:00:50.9]} 30... Re2 {[%clk 0:00:10.8]} 31. Rd1 {[%clk 0:00:38.6]} 31... Rxa2
{[%clk 0:00:09.6]} 32. Rd8+ {[%clk 0:00:39.2]} 32... Kg7 {[%clk 0:00:09.8]} 33.
Ra8 {[%clk 0:00:40.1]} 33... Rb2 {[%clk 0:00:09.7]} 34. Rxa3 {[%clk 0:00:40.3]}
34... Rxb4 {[%clk 0:00:10]} 35. Ra7 {[%clk 0:00:40]} 35... Rc4 {[%clk
0:00:09.8]} 36. Rxc7 {[%clk 0:00:40.1]} 36... Kf6 {[%clk 0:00:10.5]} 37. Kg2
{[%clk 0:00:37.3]} 37... Kg7 {[%clk 0:00:10.3]} 38. Kf3 {[%clk 0:00:29.9]} 38...
Kf6 {[%clk 0:00:09.2]} 39. Ke2 {[%clk 0:00:26.9]} 39... Rc3 {[%clk 0:00:08.3]}
40. Kd2 {[%clk 0:00:25.2]} 40... Rc5 {[%clk 0:00:08.4]} 41. Kd3 {[%clk
0:00:24.1]} 41... Ke6 {[%clk 0:00:08.7]} 42. Kd4 {[%clk 0:00:17.8]} 42... Rc2
{[%clk 0:00:09.3]} 43. f3 {[%clk 0:00:18.1]} 43... h5 {[%clk 0:00:07.3]} 44. Rc8
{[%clk 0:00:16.7]} 44... f6 {[%clk 0:00:06.3]} 45. Ke3 {[%clk 0:00:13.2]} 45...
Rc4 {[%clk 0:00:03.7]} 46. Kd3 {[%clk 0:00:07.1]} 46... Rc1 {[%clk 0:00:03.7]}
47. Kd2 {[%clk 0:00:06]} 47... Rc4 {[%clk 0:00:03.7]} 48. Ke3 {[%clk 0:00:05.7]}
48... Rc1 {[%clk 0:00:04]} 49. Rh8 {[%clk 0:00:05.1]} 49... Rxc6 {[%clk
0:00:03.1]} 50. Rxh5 {[%clk 0:00:05.6]} 50... Rc3+ {[%clk 0:00:03.6]} 51. Ke2
{[%clk 0:00:03.8]} 51... Rc2+ {[%clk 0:00:04]} 52. Kd3 {[%clk 0:00:04.5]} 52...
Rg2 {[%clk 0:00:03.8]} 53. Rh8 {[%clk 0:00:02.3]} 53... Rxg3 {[%clk 0:00:04.3]}
54. Ke3 {[%clk 0:00:03.2]} 54... Rh3 {[%clk 0:00:04.2]} 55. Kf4 {[%clk
0:00:03.4]} 55... Rh1 {[%clk 0:00:04.4]} 56. Rh7 {[%clk 0:00:03.9]} 56... Rh2
{[%clk 0:00:04.2]} 57. h5 {[%clk 0:00:04.3]} 57... Rh4+ {[%clk 0:00:04.1]} 58.
Kg3 {[%clk 0:00:04.5]} 58... Rh1 {[%clk 0:00:04.8]} 59. Kg2 {[%clk 0:00:04.9]}
59... Rh4 {[%clk 0:00:04.5]} 60. h6 {[%clk 0:00:05.5]} 60... Rh5 {[%clk
0:00:04.7]} 61. Kg3 {[%clk 0:00:05.8]} 61... Rg5+ {[%clk 0:00:04.7]} 62. Kf4
{[%clk 0:00:06.3]} 62... Rh5 {[%clk 0:00:03.5]} 63. Rh8 {[%clk 0:00:06.9]} 63...
Kf7 {[%clk 0:00:02.8]} 64. h7 {[%clk 0:00:05.8]} 64... Kg7 {[%clk 0:00:02]} 65.
Ra8 {[%clk 0:00:05.1]} 65... Kxh7 {[%clk 0:00:02.3]} 66. Ra7+ {[%clk 0:00:05.5]}
66... Kg6 {[%clk 0:00:03.1]} 67. Ra8 {[%clk 0:00:06.4]} 67... Rh4+ {[%clk
0:00:02.8]} 68. Ke3 {[%clk 0:00:07.1]} 68... Rb4 {[%clk 0:00:03.3]} 69. Rg8+
{[%clk 0:00:07.1]} 69... Kf7 {[%clk 0:00:04.1]} 70. Rc8 {[%clk 0:00:07.3]} 70...
Rb3+ {[%clk 0:00:05]} 71. Kf4 {[%clk 0:00:07.7]} 71... Rb4+ {[%clk 0:00:05.9]}
72. Kxf5 {[%clk 0:00:07.6]} 72... Rb5+ {[%clk 0:00:06.8]} 73. Kf4 {[%clk
0:00:07.4]} 73... Rb4+ {[%clk 0:00:06.8]} 74. Kg3 {[%clk 0:00:06.9]} 74... Rb7
{[%clk 0:00:06.9]} 75. Kg4 {[%clk 0:00:06.8]} 75... Rb4+ {[%clk 0:00:06.1]} 76.
f4 {[%clk 0:00:07.2]} 76... Rb7 {[%clk 0:00:07]} 77. Rc6 {[%clk 0:00:07.3]}
77... Rd7 {[%clk 0:00:06.9]} 78. Kh5 {[%clk 0:00:06.6]} 78... Rd5+ {[%clk
0:00:04.6]} 79. Kh6 {[%clk 0:00:06.7]} 79... Rd7 {[%clk 0:00:04.4]} 80. f5
{[%clk 0:00:04.8]} 80... Re7 {[%clk 0:00:04.4]} 81. Rc8 {[%clk 0:00:04]} 81...
Rd7 {[%clk 0:00:03.1]} 82. Rh8 {[%clk 0:00:04.2]} 82... Rd5 {[%clk 0:00:02.9]}
83. Rh7+ {[%clk 0:00:04.7]} 83... Kf8 {[%clk 0:00:02.7]} 84. Kg6 {[%clk
0:00:05.1]} 84... Rc5 {[%clk 0:00:01.2]} 85. Rf7+ {[%clk 0:00:05.4]} 85... Kg8
{[%clk 0:00:01.8]} 86. Rxf6 {[%clk 0:00:06.2]} 86... Rc8 {[%clk 0:00:02.3]} 87.
Rd6 {[%clk 0:00:06.5]} 87... Re8 {[%clk 0:00:02.7]} 88. f6 {[%clk 0:00:05.4]}
88... Ra8 {[%clk 0:00:03.4]} 89. Rd7 {[%clk 0:00:05.6]} 89... Rf8 {[%clk
0:00:03.4]} 90. Rg7+ {[%clk 0:00:06]} 90... Kh8 {[%clk 0:00:03.9]} 91. Rh7+
{[%clk 0:00:06.7]} 91... Kg8 {[%clk 0:00:04.5]} 92. f7+ {[%clk 0:00:07.4]} 92...
Rxf7 {[%clk 0:00:03.9]} 93. Rxf7 {[%clk 0:00:08.3]} 1-0

[Event "Late-Titled-Tuesday-Blitz-February-13-2024"]
[Site "Chess.com"]
[Date "2024.02.13"]
[Round "2"]
[White "Alblooshi_Hamad"]
[Black "SouS007"]
[Result "1-0"]
[WhiteElo "2244"]
[BlackElo "2485"]
[TimeControl "180+1"]
[EndTime "14:20:13 PST"]
[Termination "Alblooshi_Hamad won by checkmate"]

1. d4 {[%clk 0:03:00.9]} 1... Nf6 {[%clk 0:02:56.8]} 2. c4 {[%clk 0:03:00.7]}
2... e6 {[%clk 0:02:56.5]} 3. Nf3 {[%clk 0:03:00.8]} 3... d5 {[%clk 0:02:54.3]}
4. Nc3 {[%clk 0:02:50]} 4... c6 {[%clk 0:02:45.4]} 5. e3 {[%clk 0:02:43.4]} 5...
Nbd7 {[%clk 0:02:45]} 6. Qc2 {[%clk 0:02:43]} 6... b6 {[%clk 0:02:42.7]} 7. b3
{[%clk 0:02:40.9]} 7... Bb7 {[%clk 0:02:42.2]} 8. Bb2 {[%clk 0:02:40.9]} 8...
Be7 {[%clk 0:02:37.3]} 9. Be2 {[%clk 0:02:36.3]} 9... O-O {[%clk 0:02:37]} 10.
O-O {[%clk 0:02:36.2]} 10... Rc8 {[%clk 0:02:36.6]} 11. e4 {[%clk 0:02:25.6]}
11... dxe4 {[%clk 0:02:36.4]} 12. Nxe4 {[%clk 0:02:25.8]} 12... Nxe4 {[%clk
0:02:36.8]} 13. Qxe4 {[%clk 0:02:25.9]} 13... Nf6 {[%clk 0:02:37.7]} 14. Qe3
{[%clk 0:02:26.2]} 14... c5 {[%clk 0:02:35.4]} 15. Rfd1 {[%clk 0:02:24.6]} 15...
Qc7 {[%clk 0:02:33]} 16. h3 {[%clk 0:02:09.9]} 16... Rfd8 {[%clk 0:02:32.4]} 17.
Ne5 {[%clk 0:01:46.3]} 17... cxd4 {[%clk 0:02:31]} 18. Bxd4 {[%clk 0:01:44.7]}
18... Bc5 {[%clk 0:02:24.4]} 19. Bxc5 {[%clk 0:01:42.5]} 19... Qxc5 {[%clk
0:02:25.3]} 20. Qxc5 {[%clk 0:01:42.7]} 20... bxc5 {[%clk 0:02:25.4]} 21. f3
{[%clk 0:01:32.2]} 21... Kf8 {[%clk 0:02:21.8]} 22. Kf2 {[%clk 0:01:32.6]} 22...
Ke7 {[%clk 0:02:21.6]} 23. Ke3 {[%clk 0:01:32.8]} 23... Nd7 {[%clk 0:02:11.3]}
24. Nd3 {[%clk 0:01:26.4]} 24... Rc6 {[%clk 0:02:06.9]} 25. Rd2 {[%clk
0:01:26.4]} 25... Rd6 {[%clk 0:02:06.5]} 26. Rad1 {[%clk 0:01:26.4]} 26... a5
{[%clk 0:01:57.4]} 27. Nb2 {[%clk 0:01:23.3]} 27... Rxd2 {[%clk 0:01:38.7]} 28.
Rxd2 {[%clk 0:01:24.2]} 28... h5 {[%clk 0:01:37.8]} 29. Na4 {[%clk 0:01:12.5]}
29... Bc6 {[%clk 0:01:37.1]} 30. Nc3 {[%clk 0:01:09.9]} 30... Ra8 {[%clk
0:01:36.1]} 31. a4 {[%clk 0:01:00.8]} 31... h4 {[%clk 0:01:31.9]} 32. Bd3 {[%clk
0:00:55]} 32... Ne5 {[%clk 0:01:29.6]} 33. Be4 {[%clk 0:00:54.7]} 33... f5
{[%clk 0:01:22.9]} 34. Bxc6 {[%clk 0:00:49.3]} 34... Nxc6 {[%clk 0:01:23.8]} 35.
Nb5 {[%clk 0:00:49.9]} 35... g5 {[%clk 0:01:11.3]} 36. Rd6 {[%clk 0:00:25.1]}
36... Nd4 {[%clk 0:01:03.4]} 37. Rb6 {[%clk 0:00:25.3]} 37... Nxb3 {[%clk
0:00:47.3]} 38. Nc7 {[%clk 0:00:25.7]} 38... Rd8 {[%clk 0:00:31.7]} 39. Nxe6
{[%clk 0:00:23.7]} 39... Rd1 {[%clk 0:00:27.7]} 40. Rxb3 {[%clk 0:00:16.6]}
40... Kxe6 {[%clk 0:00:26.9]} 41. Rb5 {[%clk 0:00:16.7]} 41... Kd6 {[%clk
0:00:22.7]} 42. Rxa5 {[%clk 0:00:16.3]} 42... f4+ {[%clk 0:00:23.2]} 43. Ke2
{[%clk 0:00:14]} 43... Rd4 {[%clk 0:00:24.1]} 44. Ra6+ {[%clk 0:00:13.3]} 44...
Ke5 {[%clk 0:00:24.3]} 45. Rg6 {[%clk 0:00:12.8]} 45... Kf5 {[%clk 0:00:24.7]}
46. Rc6 {[%clk 0:00:13]} 46... Rxc4 {[%clk 0:00:25.1]} 47. a5 {[%clk 0:00:13.6]}
47... Ke5 {[%clk 0:00:21.9]} 48. a6 {[%clk 0:00:13.5]} 48... Kd4 {[%clk
0:00:21.1]} 49. Rd6+ {[%clk 0:00:12.5]} 49... Ke5 {[%clk 0:00:21.2]} 50. Rc6
{[%clk 0:00:12.7]} 50... Rc2+ {[%clk 0:00:21.6]} 51. Kf1 {[%clk 0:00:12.4]}
51... Kd4 {[%clk 0:00:18.2]} 52. Rd6+ {[%clk 0:00:12.5]} 52... Ke3 {[%clk
0:00:18.7]} 53. Re6+ {[%clk 0:00:13.1]} 53... Kd3 {[%clk 0:00:19.2]} 54. Rd6+
{[%clk 0:00:12.8]} 54... Kc4 {[%clk 0:00:19.2]} 55. a7 {[%clk 0:00:12.8]} 55...
Ra2 {[%clk 0:00:19.6]} 56. Rd7 {[%clk 0:00:12.6]} 56... Kc3 {[%clk 0:00:18.1]}
57. Rg7 {[%clk 0:00:12.1]} 57... c4 {[%clk 0:00:17.7]} 58. Rc7 {[%clk
0:00:06.6]} 58... Kd3 {[%clk 0:00:17.2]} 59. Rd7+ {[%clk 0:00:07.2]} 59... Ke3
{[%clk 0:00:16.4]} 60. Re7+ {[%clk 0:00:07.5]} 60... Kd2 {[%clk 0:00:16.7]} 61.
Rd7+ {[%clk 0:00:08.1]} 61... Kc2 {[%clk 0:00:16.8]} 62. Rc7 {[%clk 0:00:08.7]}
62... c3 {[%clk 0:00:17]} 63. Rd7 {[%clk 0:00:09.3]} 63... Kc1 {[%clk
0:00:16.7]} 64. Rc7 {[%clk 0:00:09.8]} 64... c2 {[%clk 0:00:16.8]} 65. Ke1
{[%clk 0:00:10.2]} 65... Ra6 {[%clk 0:00:12.4]} 66. Ke2 {[%clk 0:00:09.5]} 66...
Re6+ {[%clk 0:00:12]} 67. Kd3 {[%clk 0:00:10.1]} 67... Rd6+ {[%clk 0:00:12.3]}
68. Ke2 {[%clk 0:00:10.2]} 68... Rd8 {[%clk 0:00:12]} 69. Ke1 {[%clk 0:00:08.6]}
69... Re8+ {[%clk 0:00:11.2]} 70. Kf2 {[%clk 0:00:09]} 70... Kd2 {[%clk
0:00:10.6]} 71. Rd7+ {[%clk 0:00:09.6]} 71... Kc3 {[%clk 0:00:10.3]} 72. Rc7+
{[%clk 0:00:09.9]} 72... Kb2 {[%clk 0:00:09.9]} 73. Rb7+ {[%clk 0:00:10.5]}
73... Kc1 {[%clk 0:00:10.5]} 74. Rc7 {[%clk 0:00:10.9]} 74... Ra8 {[%clk
0:00:11]} 75. Ke2 {[%clk 0:00:10.4]} 75... Kb2 {[%clk 0:00:10.6]} 76. Rb7+
{[%clk 0:00:10.4]} 76... Kc3 {[%clk 0:00:10.4]} 77. Rc7+ {[%clk 0:00:10.7]}
77... Kb3 {[%clk 0:00:10.6]} 78. Rb7+ {[%clk 0:00:11.2]} 78... Ka3 {[%clk
0:00:11]} 79. Kd2 {[%clk 0:00:11.3]} 79... Ka4 {[%clk 0:00:06.1]} 80. Kxc2
{[%clk 0:00:11.5]} 80... Ka5 {[%clk 0:00:06.8]} 81. Kd3 {[%clk 0:00:12.1]} 81...
Ka6 {[%clk 0:00:07.2]} 82. Rd7 {[%clk 0:00:12.4]} 82... Re8 {[%clk 0:00:06.9]}
83. Re7 {[%clk 0:00:09.6]} 83... Rd8+ {[%clk 0:00:05.6]} 84. Ke4 {[%clk
0:00:10.2]} 84... Kb6 {[%clk 0:00:06.2]} 85. Kf5 {[%clk 0:00:10.8]} 85... Rg8
{[%clk 0:00:06.3]} 86. Rg7 {[%clk 0:00:08.9]} 86... Rf8+ {[%clk 0:00:06.7]} 87.
Kxg5 {[%clk 0:00:09]} 87... Ka6 {[%clk 0:00:05.7]} 88. Kxh4 {[%clk 0:00:08.8]}
88... Re8 {[%clk 0:00:03.5]} 89. Kg4 {[%clk 0:00:09.2]} 89... Rf8 {[%clk
0:00:04.4]} 90. h4 {[%clk 0:00:09.8]} 90... Re8 {[%clk 0:00:04.8]} 91. h5 {[%clk
0:00:10.5]} 91... Rh8 {[%clk 0:00:05]} 92. Kxf4 {[%clk 0:00:09.2]} 92... Rf8+
{[%clk 0:00:04.6]} 93. Kg5 {[%clk 0:00:09.3]} 93... Re8 {[%clk 0:00:05]} 94. h6
{[%clk 0:00:09.8]} 94... Rf8 {[%clk 0:00:04.8]} 95. h7 {[%clk 0:00:09.9]} 95...
Rh8 {[%clk 0:00:05.1]} 96. Kg6 {[%clk 0:00:09.5]} 96... Rc8 {[%clk 0:00:04.8]}
97. Rg8 {[%clk 0:00:08.6]} 97... Rc6+ {[%clk 0:00:05.2]} 98. Kf5 {[%clk
0:00:08.6]} 98... Rc5+ {[%clk 0:00:05.2]} 99. Ke4 {[%clk 0:00:08.9]} 99... Rc4+
{[%clk 0:00:04.8]} 100. Kd3 {[%clk 0:00:09]} 100... Rc7 {[%clk 0:00:05.3]} 101.
a8=Q+ {[%clk 0:00:08.1]} 101... Kb6 {[%clk 0:00:06.2]} 102. h8=Q {[%clk
0:00:07.6]} 102... Rc6 {[%clk 0:00:05.7]} 103. Qb2+ {[%clk 0:00:07.2]} 103...
Kc7 {[%clk 0:00:05.6]} 104. Rc8+ {[%clk 0:00:06.6]} 104... Kd6 {[%clk 0:00:06]}
105. Qxc6+ {[%clk 0:00:07.1]} 105... Ke7 {[%clk 0:00:06.9]} 106. Qe5+ {[%clk
0:00:07.4]} 106... Kf7 {[%clk 0:00:07.8]} 107. Qcf6# {[%clk 0:00:07.9]} 1-0

[Event "Late-Titled-Tuesday-Blitz-February-13-2024"]
[Site "Chess.com"]
[Date "2024.02.13"]
[Round "3"]
[White "Rashad_Zeynalli"]
[Black "terrortoast"]
[Result "1-0"]
[WhiteElo "2664"]
[BlackElo "2468"]
[TimeControl "180+1"]
[EndTime "14:23:14 PST"]
[Termination "Rashad_Zeynalli won by checkmate"]

1. e4 {[%clk 0:03:00.9]} 1... c5 {[%clk 0:02:59.1]} 2. c3 {[%clk 0:03:00.5]}
2... d5 {[%clk 0:02:57.9]} 3. exd5 {[%clk 0:03:00.5]} 3... Nf6 {[%clk
0:02:57.7]} 4. Qa4+ {[%clk 0:02:58.4]} 4... Nbd7 {[%clk 0:02:57.7]} 5. Nf3
{[%clk 0:02:45.7]} 5... g6 {[%clk 0:02:55.5]} 6. d4 {[%clk 0:02:40]} 6... cxd4
{[%clk 0:02:54.5]} 7. Nxd4 {[%clk 0:02:33.4]} 7... Nxd5 {[%clk 0:02:51.7]} 8.
Bc4 {[%clk 0:02:27.3]} 8... Nb6 {[%clk 0:02:46.5]} 9. Bxf7+ {[%clk 0:02:22.6]}
9... Kxf7 {[%clk 0:02:46.6]} 10. Qb3+ {[%clk 0:02:21.9]} 10... e6 {[%clk
0:02:33.6]} 11. Qxe6+ {[%clk 0:02:10.2]} 11... Kg7 {[%clk 0:02:33.3]} 12. Nf5+
{[%clk 0:01:44.3]} 12... gxf5 {[%clk 0:02:22.2]} 13. Bh6# {[%clk 0:01:42.9]} 1-0

[Event "Late-Titled-Tuesday-Blitz-February-13-2024"]
[Site "Chess.com"]
[Date "2024.02.13"]
[Round "3"]
[White "VladimirBugayev"]
[Black "dennisodessa"]
[Result "0-1"]
[WhiteElo "2395"]
[BlackElo "2584"]
[TimeControl "180+1"]
[EndTime "14:23:53 PST"]
[Termination "dennisodessa won by resignation"]

1. e4 {[%clk 0:03:00.9]} 1... e6 {[%clk 0:02:57.4]} 2. d4 {[%clk 0:03:00.5]}
2... d5 {[%clk 0:02:58]} 3. Bd3 {[%clk 0:03:01.1]} 3... dxe4 {[%clk 0:02:57.9]}
4. Bxe4 {[%clk 0:03:02]} 4... Nf6 {[%clk 0:02:58.7]} 5. Bf3 {[%clk 0:03:02.5]}
5... Nbd7 {[%clk 0:02:59.6]} 6. Ne2 {[%clk 0:03:01]} 6... e5 {[%clk 0:03:00.3]}
7. O-O {[%clk 0:02:58.7]} 7... e4 {[%clk 0:03:00.1]} 8. Ng3 {[%clk 0:02:57.4]}
8... exf3 {[%clk 0:03:00.2]} 9. Re1+ {[%clk 0:02:57.7]} 9... Be7 {[%clk
0:03:00.8]} 10. Nf5 {[%clk 0:02:58.3]} 10... O-O {[%clk 0:03:01.4]} 11. Nxe7+
{[%clk 0:02:57.3]} 11... Kh8 {[%clk 0:03:02.1]} 12. Qxf3 {[%clk 0:02:54.4]}
12... Re8 {[%clk 0:03:01.4]} 13. Qe2 {[%clk 0:02:30.9]} 13... Nf8 {[%clk
0:02:35.1]} 14. Bg5 {[%clk 0:02:27.8]} 14... Be6 {[%clk 0:02:35]} 15. d5 {[%clk
0:02:21]} 15... Bxd5 {[%clk 0:02:26.3]} 16. Bxf6 {[%clk 0:02:19.6]} 16... gxf6
{[%clk 0:02:27.2]} 17. Qd1 {[%clk 0:01:43]} 17... Rxe7 {[%clk 0:02:23.4]} 18.
Rxe7 {[%clk 0:01:42.3]} 18... Qxe7 {[%clk 0:02:24.3]} 19. Nc3 {[%clk 0:01:41.8]}
19... Bc6 {[%clk 0:02:24.4]} 20. Qd4 {[%clk 0:01:37.9]} 20... Qe5 {[%clk
0:02:21.6]} 21. Qh4 {[%clk 0:01:36]} 21... Ng6 {[%clk 0:02:20.7]} 22. Qh3 {[%clk
0:01:34.5]} 22... Nf4 {[%clk 0:02:18.7]} 0-1

[Event "Late-Titled-Tuesday-Blitz-February-13-2024"]
[Site "Chess.com"]
[Date "2024.02.13"]
[Round "3"]
[White "LogoCzar"]
[Black "MajorCoast"]
[Result "1-0"]
[WhiteElo "2400"]
[BlackElo "2194"]
[TimeControl "180+1"]
[EndTime "14:24:18 PST"]
[Termination "LogoCzar won by checkmate"]

1. e4 {[%clk 0:02:57.7]} 1... c5 {[%clk 0:02:58.1]} 2. Nf3 {[%clk 0:02:57.7]}
2... h6 {[%clk 0:02:57.3]} 3. d4 {[%clk 0:02:56.9]} 3... cxd4 {[%clk 0:02:58.2]}
4. Nxd4 {[%clk 0:02:57.1]} 4... Nf6 {[%clk 0:02:57.7]} 5. Nc3 {[%clk 0:02:57.2]}
5... e5 {[%clk 0:02:56.6]} 6. Ndb5 {[%clk 0:02:55.7]} 6... d6 {[%clk 0:02:52.4]}
7. Nd5 {[%clk 0:02:55.1]} 7... Nxd5 {[%clk 0:02:48.7]} 8. exd5 {[%clk
0:02:52.4]} 8... Be7 {[%clk 0:02:44.3]} 9. Bd3 {[%clk 0:02:51.4]} 9... O-O
{[%clk 0:02:43.2]} 10. g4 {[%clk 0:02:46]} 10... a6 {[%clk 0:02:43.2]} 11. Nc3
{[%clk 0:02:45.8]} 11... Nd7 {[%clk 0:02:39.3]} 12. h4 {[%clk 0:02:45]} 12...
Nc5 {[%clk 0:02:38]} 13. g5 {[%clk 0:02:44.8]} 13... Nxd3+ {[%clk 0:02:34]} 14.
Qxd3 {[%clk 0:02:43.6]} 14... h5 {[%clk 0:02:33.8]} 15. Bd2 {[%clk 0:02:37.6]}
15... g6 {[%clk 0:02:33.7]} 16. O-O-O {[%clk 0:02:36.7]} 16... Bf5 {[%clk
0:02:33.9]} 17. Qe2 {[%clk 0:02:36.3]} 17... b5 {[%clk 0:02:33.1]} 18. Ne4
{[%clk 0:02:36.2]} 18... a5 {[%clk 0:02:19.8]} 19. Rdf1 {[%clk 0:02:35.5]} 19...
b4 {[%clk 0:02:16.5]} 20. f4 {[%clk 0:02:35.5]} 20... Qc7 {[%clk 0:01:51.4]} 21.
fxe5 {[%clk 0:02:35.3]} 21... dxe5 {[%clk 0:01:52.3]} 22. Rxf5 {[%clk
0:02:35.2]} 22... gxf5 {[%clk 0:01:49]} 23. Nf6+ {[%clk 0:02:34.4]} 23... Bxf6
{[%clk 0:01:41]} 24. gxf6 {[%clk 0:02:35.3]} 24... Rfc8 {[%clk 0:01:32.2]} 25.
Qg2+ {[%clk 0:02:29.5]} 25... Kf8 {[%clk 0:01:29.8]} 26. Qg7+ {[%clk 0:02:28.9]}
26... Ke8 {[%clk 0:01:30.2]} 27. Qg8+ {[%clk 0:02:29.1]} 27... Kd7 {[%clk
0:01:29.7]} 28. Qxf7+ {[%clk 0:02:28.5]} 28... Kd8 {[%clk 0:01:17.5]} 29. Qf8+
{[%clk 0:02:26.8]} 29... Kd7 {[%clk 0:01:17]} 30. Qe7# {[%clk 0:02:27]} 1-0

[Event "Late-Titled-Tuesday-Blitz-February-13-2024"]
[Site "Chess.com"]
[Date "2024.02.13"]
[Round "3"]
[White "GothamChess"]
[Black "h4parah5"]
[Result "0-1"]
[WhiteElo "2718"]
[BlackElo "2966"]
[TimeControl "180+1"]
[EndTime "14:24:26 PST"]
[Termination "h4parah5 won by resignation"]

1. e4 {[%clk 0:03:00.9]} 1... c5 {[%clk 0:02:59.7]} 2. Nc3 {[%clk 0:02:57.7]}
2... Nc6 {[%clk 0:02:59.7]} 3. Bb5 {[%clk 0:02:57.9]} 3... Nd4 {[%clk
0:02:59.4]} 4. Nf3 {[%clk 0:02:58.2]} 4... Nxb5 {[%clk 0:02:55.1]} 5. Nxb5
{[%clk 0:02:58.5]} 5... d6 {[%clk 0:02:55.8]} 6. d4 {[%clk 0:02:58.5]} 6... Nf6
{[%clk 0:02:52.8]} 7. Nc3 {[%clk 0:02:55.7]} 7... cxd4 {[%clk 0:02:51]} 8. Qxd4
{[%clk 0:02:55.1]} 8... e5 {[%clk 0:02:50.5]} 9. Qd3 {[%clk 0:02:51.2]} 9... h6
{[%clk 0:02:50]} 10. O-O {[%clk 0:02:26.8]} 10... Be7 {[%clk 0:02:44.8]} 11. Rd1
{[%clk 0:02:25.9]} 11... a6 {[%clk 0:02:34.1]} 12. b3 {[%clk 0:02:24.8]} 12...
O-O {[%clk 0:02:26.7]} 13. Ba3 {[%clk 0:02:08.1]} 13... Qa5 {[%clk 0:02:21.8]}
14. Bxd6 {[%clk 0:01:38.4]} 14... Bxd6 {[%clk 0:02:07.8]} 15. Qxd6 {[%clk
0:01:38.6]} 15... Qxc3 {[%clk 0:02:07.3]} 16. Nxe5 {[%clk 0:01:38.9]} 16... Nxe4
{[%clk 0:01:52.8]} 17. Qe7 {[%clk 0:01:34.7]} 17... Qc5 {[%clk 0:01:37.3]} 0-1

[Event "Late-Titled-Tuesday-Blitz-February-13-2024"]
[Site "Chess.com"]
[Date "2024.02.13"]
[Round "3"]
[White "rikchessmx"]
[Black "lupta_robin"]
[Result "0-1"]
[WhiteElo "2302"]
[BlackElo "2557"]
[TimeControl "180+1"]
[EndTime "14:24:39 PST"]
[Termination "lupta_robin won by resignation"]

1. e4 {[%clk 0:02:58.2]} 1... Nc6 {[%clk 0:02:55.5]} 2. Nc3 {[%clk 0:02:57]}
2... e5 {[%clk 0:02:55.1]} 3. Bc4 {[%clk 0:02:56]} 3... Bc5 {[%clk 0:02:55.4]}
4. d3 {[%clk 0:02:56.3]} 4... Nf6 {[%clk 0:02:54.9]} 5. Nf3 {[%clk 0:02:56.3]}
5... d6 {[%clk 0:02:55.2]} 6. Bg5 {[%clk 0:02:54.7]} 6... h6 {[%clk 0:02:54.9]}
7. Bxf6 {[%clk 0:02:54.2]} 7... Qxf6 {[%clk 0:02:54.8]} 8. Nd5 {[%clk 0:02:54]}
8... Qd8 {[%clk 0:02:55.5]} 9. c3 {[%clk 0:02:53.9]} 9... a6 {[%clk 0:02:55.9]}
10. b4 {[%clk 0:02:53.5]} 10... Ba7 {[%clk 0:02:56.2]} 11. h3 {[%clk 0:02:51.5]}
11... Be6 {[%clk 0:02:56.2]} 12. O-O {[%clk 0:02:02.2]} 12... O-O {[%clk
0:02:56]} 13. a4 {[%clk 0:01:51]} 13... Ne7 {[%clk 0:02:55.4]} 14. Qb3 {[%clk
0:01:46.1]} 14... c6 {[%clk 0:02:48.7]} 15. Nxe7+ {[%clk 0:01:45.4]} 15... Qxe7
{[%clk 0:02:49.6]} 16. Bxe6 {[%clk 0:01:45.4]} 16... Qxe6 {[%clk 0:02:50.5]} 17.
Qc2 {[%clk 0:01:43.5]} 17... f5 {[%clk 0:02:47.9]} 18. exf5 {[%clk 0:01:43.5]}
18... Rxf5 {[%clk 0:02:46.8]} 19. Nh2 {[%clk 0:01:32]} 19... Raf8 {[%clk
0:02:45.2]} 20. Rae1 {[%clk 0:01:20.4]} 20... Rxf2 {[%clk 0:02:44.7]} 21. Rxf2
{[%clk 0:01:13.8]} 21... Rxf2 {[%clk 0:02:45.6]} 22. Qxf2 {[%clk 0:01:11.5]}
22... Bxf2+ {[%clk 0:02:46.5]} 23. Kxf2 {[%clk 0:01:11.4]} 23... Qa2+ {[%clk
0:02:47.2]} 24. Re2 {[%clk 0:01:11.2]} 24... Qxa4 {[%clk 0:02:47.4]} 25. Ng4
{[%clk 0:01:09.3]} 25... Qb3 {[%clk 0:02:46.3]} 26. c4 {[%clk 0:01:08.7]} 26...
Qxb4 {[%clk 0:02:46.3]} 27. Ne3 {[%clk 0:01:08.6]} 27... Qc3 {[%clk 0:02:46.1]}
28. Nf5 {[%clk 0:01:05.8]} 28... Qxd3 {[%clk 0:02:45.6]} 29. g4 {[%clk 0:01:04]}
29... Qxc4 {[%clk 0:02:45.2]} 30. Re3 {[%clk 0:00:46.7]} 30... d5 {[%clk
0:02:42.5]} 31. Rxe5 {[%clk 0:00:44.4]} 31... Qf4+ {[%clk 0:02:42.1]} 0-1